bitfinex-derivatives/quotes_ETHF0:USTF0_20210705
["timestamp","ask_amount","ask_price","bid_price","bid_amount"]
[1625464336579,2.20527,2269.7,2269.6,5.49037]
[1625464337686,2.20527,2269.7,2269.6,6.49037]
[1625464338965,2.20527,2269.7,2268.3,0.05]
[1625464339061,4.38237,2269.7,2268.3,1.05]
[1625464339686,4.38237,2269.7,2268.4,16.132157]
[1625464339787,4.38237,2269.7,2268.5,1.0]
[1625464340206,2.20527,2269.7,2268.5,1.0]
[1625464340693,2.20527,2269.7,2268.6,16.098963]
[1625464340792,2.20527,2269.7,2268.7,1.0]
[1625464341193,2.20527,2269.7,2268.8,16.105243]
[1625464341294,2.20527,2269.7,2268.9,1.0]
[1625464341845,2.20527,2269.7,2269.0,15.861558]
[1625464341946,2.20527,2269.7,2269.1,1.0]
[1625464342616,2.20527,2269.7,2269.2,2.20527]
[1625464343302,4.77047,2269.7,2268.1,14.2567]
[1625464343650,4.77047,2269.7,2268.2,1.0]
[1625464343953,4.77047,2269.7,2268.2,19.242279]
[1625464344608,4.77047,2269.7,2269.3,2.20527]
[1625464344804,4.77047,2269.7,2269.4,1.0]
[1625464345005,4.77047,2269.7,2269.3,2.20527]
[1625464345103,4.77047,2269.7,2269.3,3.20527]
[1625464345405,4.77047,2269.7,2269.3,2.20527]
[1625464346108,4.77047,2269.7,2269.4,1.0]
[1625464346610,2.20527,2269.5,2269.4,1.0]
[1625464346811,2.20527,2269.5,2269.3,2.20527]
[1625464347212,2.20527,2269.5,2269.3,3.20527]
[1625464355699,5.05197,2269.5,2269.3,3.20527]
[1625464355900,5.05197,2269.5,2269.3,2.20527]
[1625464357300,5.05197,2269.5,2269.2,1.0]
[1625464357401,5.05197,2269.5,2268.1,14.2567]
[1625464357854,46.04064541,2269.3,2268.1,14.2567]
[1625464358055,46.04064541,2269.3,2268.2,15.886006]
[1625464358154,46.04064541,2269.3,2268.3,1.0]
[1625464358356,43.4397,2269.3,2268.3,1.0]
[1625464358456,43.4397,2269.3,2268.4,15.884667]
[1625464358554,43.4397,2269.3,2268.5,1.0]
[1625464358756,2.20527,2268.9,2268.8,2.20527]
[1625464358857,4.73487,2268.9,2268.8,2.20527]
[1625464362881,3.73487,2268.9,2268.8,2.20527]
[1625464362981,1.20527,2268.9,2268.8,2.20527]
[1625464363982,2.20527,2268.9,2268.8,2.20527]
[1625464364937,1.20527,2268.9,2268.8,2.20527]
[1625464365135,2.20527,2268.9,2268.8,2.20527]
[1625464369595,5.61937,2268.9,2268.6,2.20527]
[1625464369694,5.61937,2268.9,2268.0,13.8565]
[1625464370393,7.44169128,2268.9,2268.0,13.8565]
[1625464370746,7.44169128,2268.9,2268.5,2.20527]
[1625464370844,5.61937,2268.9,2268.5,2.20527]
[1625464372802,2.20527,2268.6,2268.5,2.20527]
[1625464372900,3.20527,2268.6,2268.5,2.20527]
[1625464373897,1.0,2268.6,2268.5,2.20527]
[1625464374100,1.82235128,2268.9,2268.5,2.20527]
[1625464374201,1.82235128,2268.9,2268.5,4.59017]
[1625464374602,1.82219079,2269.2,2268.5,4.59017]
[1625464374701,1.82219079,2269.2,2268.6,16.00925]
[1625464374803,1.82219079,2269.2,2269.1,4.41054]
[1625464375263,2.82219079,2269.2,2269.1,4.41054]
[1625464377075,2.82219079,2269.2,2269.1,6.56934]
[1625464377175,1.82219079,2269.2,2269.1,6.56934]
[1625464377577,2.20527,2269.3,2269.1,6.56934]
[1625464377878,1.82216095,2269.4,2269.1,6.56934]
[1625464377981,2.20527,2269.5,2269.1,6.56934]
[1625464378794,2.20527,2269.5,2269.4,2.20527]
[1625464379943,3.20527,2269.5,2269.4,2.20527]
[1625464380144,2.20527,2269.5,2269.4,2.20527]
[1625464380345,3.20527,2269.5,2269.4,2.20527]
[1625464380646,5.02706977,2269.5,2269.4,2.20527]
[1625464381699,3.20527,2269.5,2269.4,2.20527]
[1625464382451,5.02708449,2269.5,2269.4,2.20527]
[1625464384153,3.20527,2269.5,2269.4,2.20527]
[1625464384505,5.80795111,2269.5,2269.4,2.20527]
[1625464385155,9.16105111,2269.5,2269.4,2.20527]
[1625464386857,6.55837,2269.5,2269.4,2.20527]
[1625464387209,6.58905018,2269.5,2269.4,2.20527]
[1625464387414,5.58905018,2269.5,2269.4,2.20527]
[1625464387511,4.02710766,2269.5,2269.4,2.20527]
[1625464387810,2.20527,2269.5,2269.4,2.20527]
[1625464388112,5.02706204,2269.5,2269.4,2.20527]
[1625464388513,3.20527,2269.5,2269.4,2.20527]
[1625464388913,2.20527,2269.5,2269.4,2.20527]
[1625464389214,4.02702434,2269.5,2269.4,2.20527]
[1625464389422,5.02702434,2269.5,2269.4,2.20527]
[1625464389524,4.02702434,2269.5,2269.4,2.20527]
[1625464389823,2.20527,2269.5,2269.4,2.20527]
[1625464391746,6.36397,2269.5,2269.4,2.20527]
[1625464392247,8.18556208,2269.5,2269.4,2.20527]
[1625464392546,7.18556208,2269.5,2269.4,2.20527]
[1625464392797,5.36397,2269.5,2269.4,2.20527]
[1625464393197,6.36397,2269.5,2269.4,2.20527]
[1625464395000,8.18536993,2269.5,2269.4,2.20527]
[1625464395551,8.18536993,2269.5,2268.2,1.77416555]
[1625464396100,1.82167342,2269.2,2268.0,13.8565]
[1625464396201,1.0,2269.1,2268.0,13.8565]
[1625464396452,2.82164794,2269.1,2268.0,13.8565]
[1625464396753,1.8216949,2269.0,2268.1,15.90704]
[1625464396853,2.20527,2268.4,2268.3,2.20527]
[1625464397053,5.02927,2268.4,2268.3,2.20527]
[1625464398904,7.23454,2268.4,2268.3,2.20527]
[1625464400513,8.23454,2268.4,2268.3,2.20527]
[1625464407836,7.23454,2268.4,2268.3,2.20527]
[1625464411860,5.02927,2268.4,2268.3,2.20527]
[1625464411971,2.20527,2268.4,2268.3,2.20527]
[1625464412169,1.82094834,2269.0,2268.3,2.20527]
[1625464412468,1.82094834,2269.0,2268.3,18.284425]
[1625464412824,1.82080834,2269.2,2268.3,18.284425]
[1625464413027,2.82080834,2269.2,2269.1,4.41054]
[1625464413125,2.82080834,2269.2,2269.1,6.55564]
[1625464413428,1.0,2269.2,2269.1,6.55564]
[1625464413875,1.82070809,2269.3,2269.1,6.55564]
[1625464413975,2.82070809,2269.3,2269.1,6.55564]
[1625464414082,1.82070809,2269.3,2269.1,6.55564]
[1625464414285,1.82063398,2269.4,2269.1,6.55564]
[1625464414734,2.60090569,2269.5,2269.1,6.55564]
[1625464414735,1.82061,2269.5,2269.1,6.55564]
[1625464414986,1.0,2269.4,2269.1,4.35037]
[1625464415235,2.82059747,2269.4,2269.1,4.35037]
[1625464415335,2.82059747,2269.4,2269.1,2.20527]
[1625464416188,1.82078435,2269.3,2268.1,0.05]
[1625464416286,4.2383,2269.2,2268.1,0.05]
[1625464416587,4.2383,2269.2,2268.0,13.8565]
[1625464416840,53.0362,2268.8,2268.0,13.8565]
[1625464416939,1.0,2268.7,2268.0,13.8565]
[1625464417039,3.6146,2268.7,2268.0,13.8565]
[1625464417240,2.6146,2268.7,2268.0,13.8565]
[1625464417353,1.82089709,2268.9,2268.0,13.8565]
[1625464417441,1.82089709,2268.9,2268.0,17.0022]
[1625464417542,2.20527,2268.7,2268.6,2.20527]
[1625464417642,3.20527,2268.7,2268.6,2.20527]
[1625464418044,1.0,2268.7,2268.6,2.20527]
[1625464418555,3.3152,2268.7,2268.6,2.20527]
[1625464419006,7.72574,2268.7,2268.6,2.20527]
[1625464419706,9.54681511,2268.7,2268.6,2.20527]
[1625464423818,7.72574,2268.7,2268.6,2.20527]
[1625464428139,9.02615497,2268.7,2268.6,2.20527]
[1625464428991,9.02615497,2268.7,2268.0,0.8855]
[1625464429092,4.41054,2268.1,2268.0,0.8855]
[1625464429291,4.41054,2268.1,2267.8,2.20527]
[1625464429649,2.20527,2268.1,2267.8,2.20527]
[1625464430246,1.0,2268.5,2267.8,2.20527]
[1625464430546,1.30032337,2268.6,2267.8,2.20527]
[1625464430646,1.30032337,2268.6,2267.8,4.85897]
[1625464431005,1.0,2268.8,2267.8,4.85897]
[1625464431006,2.30024104,2268.8,2267.8,4.85897]
[1625464431099,1.30024104,2268.8,2268.7,2.20527]
[1625464431197,1.30024104,2268.8,2268.7,4.50217]
[1625464431451,1.30024521,2268.9,2268.7,4.50217]
[1625464432105,1.30019148,2269.2,2268.7,4.50217]
[1625464432455,1.30012915,2269.3,2268.7,4.50217]
[1625464433055,1.30012915,2269.3,2269.2,2.20527]
[1625464433157,2.30012915,2269.3,2269.2,2.20527]
[1625464433262,1.0,2269.3,2269.2,5.18297]
[1625464433461,4.02553807,2269.4,2269.2,5.18297]
[1625464433615,1.30014276,2269.3,2269.2,5.18297]
[1625464433913,2.30014276,2269.3,2269.2,5.18297]
[1625464434315,1.0,2269.3,2269.2,5.18297]
[1625464435824,4.02553807,2269.4,2269.2,5.18297]
[1625464435923,5.02553807,2269.4,2269.2,5.18297]
[1625464437025,1.30017603,2269.3,2269.2,5.18297]
[1625464437328,2.30017603,2269.3,2269.2,2.20527]
[1625464437728,1.0,2269.3,2269.2,2.20527]
[1625464437831,1.82026807,2269.4,2269.2,2.20527]
[1625464437989,1.82026807,2269.4,2269.2,4.48797]
[1625464438031,1.30018517,2269.4,2269.2,4.48797]
[1625464438332,1.30018517,2269.4,2269.2,43.23907]
[1625464438630,2.60037035,2269.6,2269.2,43.23907]
[1625464438631,1.30012963,2269.6,2269.2,43.23907]
[1625464439082,1.30012963,2269.6,2269.2,4.48797]
[1625464439181,1.30012963,2269.6,2269.5,2.20527]
[1625464439280,2.30012963,2269.6,2269.5,2.20527]
[1625464439633,2.82029203,2269.6,2269.5,2.20527]
[1625464441837,1.82029203,2269.6,2269.5,2.20527]
[1625464442036,2.82029203,2269.6,2269.5,2.20527]
[1625464442436,2.30026724,2269.6,2269.5,2.20527]
[1625464443091,2.30026724,2269.6,2269.2,2.20527]
[1625464443190,2.20527,2269.3,2269.2,2.20527]
[1625464443290,3.20527,2269.3,2269.2,2.20527]
[1625464443695,5.02599391,2269.3,2269.2,2.20527]
[1625464444495,3.20527,2269.3,2268.8,2.20527]
[1625464444596,3.20527,2269.3,2268.3,15.0998]
[1625464444695,5.0,2269.2,2268.3,15.0998]
[1625464444797,1.0,2269.1,2268.3,15.0998]
[1625464444897,1.30075026,2268.8,2268.3,15.0998]
[1625464444997,1.0,2268.7,2268.3,15.0998]
[1625464445194,4.41054,2268.4,2268.3,15.0998]
[1625464445546,5.41054,2268.4,2268.3,15.0998]
[1625464448355,3.20527,2268.4,2268.3,15.0998]
[1625464448498,1.30089002,2268.7,2268.3,15.0998]
[1625464448567,1.3009729,2268.8,2268.3,15.0998]
[1625464448660,2.60194581,2269.0,2268.4,1.0]
[1625464448760,2.60194581,2269.0,2268.4,6.0]
[1625464449029,3.38252955,2269.2,2268.4,6.0]
[1625464449118,1.97122955,2269.2,2268.4,22.005926]
[1625464449221,5.20389162,2269.7,2269.1,53.92264]
[1625464449222,2.60158242,2269.7,2269.1,53.92264]
[1625464449318,2.60158242,2269.7,2269.2,1.0]
[1625464449419,2.60158242,2269.7,2269.2,4.3849]
[1625464449519,2.55158242,2269.7,2269.2,4.3849]
[1625464449618,3.43205715,2270.0,2269.2,4.3849]
[1625464449619,0.05,2270.0,2269.3,16.110369]
[1625464449717,0.05,2270.0,2269.4,1.0]
[1625464450022,0.05,2270.0,2269.5,15.996132]
[1625464450124,0.05,2270.0,2269.6,1.0]
[1625464450526,0.05,2270.0,2269.7,15.921072]
[1625464450622,0.05,2270.0,2269.7,18.660572]
[1625464450726,0.05,2270.0,2269.8,1.0]
[1625464451175,0.05,2270.0,2269.9,15.879808]
[1625464451275,0.05,2270.0,2269.9,20.290348]
[1625464451624,0.05,2270.0,2269.9,4.41054]
[1625464451825,0.05,2270.0,2269.9,5.41054]
[1625464451926,0.05,2270.0,2269.9,21.509275]
[1625464452523,0.05,2270.0,2269.9,5.41054]
[1625464452925,0.05,2270.0,2269.9,4.41054]
[1625464453175,0.05,2270.0,2269.9,5.41054]
[1625464453627,0.05,2270.0,2269.9,4.41054]
[1625464454028,0.05,2270.0,2269.5,1.0]
[1625464454130,2.9799,2270.0,2268.5,14.2333]
[1625464454330,2.9799,2270.0,2268.3,15.0998]
[1625464454682,2.9799,2270.0,2268.6,16.120719]
[1625464454980,2.9799,2270.0,2268.4,15.912012]
[1625464455079,2.9799,2270.0,2268.5,1.0]
[1625464455280,2.20527,2269.7,2269.6,2.20527]
[1625464456782,2.20527,2269.7,2269.6,7e-05]
[1625464456884,2.20527,2269.7,2268.3,15.0998]
[1625464457084,2.20527,2269.7,2268.4,1.0]
[1625464457384,2.20527,2269.7,2269.1,2.20527]
[1625464457483,2.20527,2269.7,2269.2,1.0]
[1625464457885,0.05,2270.0,2269.2,1.0]
[1625464457984,0.05,2270.0,2269.4,51.2382]
[1625464458084,0.05,2270.0,2269.5,1.0]
[1625464459299,4.41054,2269.6,2269.5,1.0]
[1625464460350,4.41054,2269.6,2269.4,2.20527]
[1625464460550,4.41054,2269.6,2269.5,1.0]
[1625464460900,4.41054,2269.6,2269.4,2.20527]
[1625464461802,4.41054,2269.6,2269.4,3.20527]
[1625464462557,0.05,2270.0,2269.4,3.20527]
[1625464462759,0.05,2270.0,2269.4,6.01447]
[1625464463407,4.41054,2269.5,2269.4,6.01447]
[1625464463510,4.41054,2269.5,2269.4,3.8092]
[1625464463808,4.41054,2269.5,2269.4,1.0]
[1625464464107,7.42124,2269.5,2269.4,1.0]
[1625464464207,7.42124,2269.5,2269.1,2.20527]
[1625464464607,7.42124,2269.5,2269.1,3.20527]
[1625464465008,7.42124,2269.5,2269.1,1.0]
[1625464465416,2.20527,2269.2,2269.1,3.20527]
[1625464466032,2.20527,2269.2,2269.1,2.20527]
[1625464466734,2.20527,2269.2,2268.9,1.0]
[1625464466936,2.20527,2269.2,2267.5,18.4466]
[1625464467168,2.20527,2269.2,2268.3,16.0998]
[1625464467236,2.20527,2269.2,2268.3,15.0998]
[1625464467335,46.87957,2269.2,2268.3,15.0998]
[1625464467539,4.41054,2268.4,2268.3,15.0998]
[1625464468339,4.41054,2268.4,2268.3,16.0998]
[1625464473457,4.41054,2268.4,2268.3,18.4433]
[1625464476274,18.5422,2270.0,2268.3,18.4433]
[1625464476475,23.5422,2270.0,2268.3,18.4433]
[1625464476677,18.5422,2270.0,2268.3,18.4433]
[1625464477274,19.4247,2270.0,2268.3,18.4433]
[1625464477374,2.20527,2268.7,2268.6,2.20527]
[1625464477475,1.20527,2268.7,2268.6,2.20527]
[1625464482543,2.20527,2268.7,2268.2,2.20527]
[1625464482744,2.20527,2268.7,2267.4,0.8893]
[1625464483093,53.937,2268.2,2267.4,0.8893]
[1625464483707,53.937,2268.2,2268.1,2.20527]
[1625464483805,2.20527,2268.7,2268.1,2.20527]
[1625464485453,2.20527,2268.2,2268.1,2.20527]
[1625464486357,3.20527,2268.2,2268.1,2.20527]
[1625464487411,5.41054,2268.2,2268.1,2.20527]
[1625464492631,4.41054,2268.2,2268.1,5.18867]
[1625464493084,2.20527,2268.2,2268.1,5.18867]
[1625464494035,2.20527,2268.2,2268.1,21.19108]
[1625464499564,2.20527,2268.2,2268.1,5.18867]
[1625464499765,3.20527,2268.2,2268.1,5.18867]
[1625464500366,2.20527,2268.2,2268.1,5.18867]
[1625464501266,2.20527,2268.6,2268.1,5.18867]
[1625464501669,2.20527,2268.6,2268.5,2.20527]
[1625464502068,3.20527,2268.6,2268.5,2.20527]
[1625464507894,3.20527,2268.6,2268.1,2.20527]
[1625464508345,6.21577,2268.6,2268.1,2.20527]
[1625464509395,6.21577,2268.6,2267.1,14.6958]
[1625464509696,2.20527,2267.4,2267.3,2.20527]
[1625464510598,2.20527,2267.6,2267.3,2.20527]
[1625464511654,3.20527,2267.6,2267.3,2.20527]
[1625464511752,3.20527,2267.6,2267.4,2.20527]
[1625464512102,2.20527,2267.6,2267.4,2.20527]
[1625464516108,1.0,2268.0,2267.4,2.20527]
[1625464516208,13.8921,2269.0,2267.4,2.20527]
[1625464516308,1.0,2268.9,2267.4,2.20527]
[1625464516610,1.0,2268.9,2267.5,15.982994]
[1625464516710,1.0,2268.9,2267.5,18.664194]
[1625464517712,1.0,2268.9,2268.4,2.20527]
[1625464517814,2.20527,2268.5,2268.4,5.05877]
[1625464517914,3.20527,2268.5,2268.4,5.05877]
[1625464519417,3.20527,2268.5,2268.4,2.8535]
[1625464519817,5.41054,2268.5,2268.4,2.8535]
[1625464521069,5.41054,2268.5,2268.2,2.20527]
[1625464521369,5.41054,2268.5,2267.8,2.20527]
[1625464521773,3.20527,2268.5,2268.1,2.20527]
[1625464522429,3.20527,2268.5,2268.1,5.29507]
[1625464523792,2.20527,2268.2,2268.1,5.29507]
[1625464523893,3.20527,2268.2,2268.1,5.29507]
[1625464525350,2.20527,2268.2,2268.1,5.29507]
[1625464525852,2.20527,2268.2,2268.1,21.173033]
[1625464526852,2.20527,2268.5,2268.1,21.173033]
[1625464527805,2.20527,2268.5,2268.4,2.20527]
[1625464529859,3.3753316,2269.8,2268.4,18.304955]
[1625464530261,17.23204393,2269.9,2268.4,18.304955]
[1625464530661,1.0,2269.8,2268.4,18.304955]
[1625464531816,2.20527,2269.5,2269.4,2.20527]
[1625464531916,3.20527,2269.5,2269.4,2.20527]
[1625464532216,3.20527,2269.5,2269.2,2.20527]
[1625464532972,3.20527,2269.5,2268.2,0.05]
[1625464533416,3.20527,2269.5,2267.7,15.0248]
[1625464533819,2.20527,2268.4,2268.3,2.20527]
[1625464534169,3.20527,2268.4,2268.3,2.20527]
[1625464534371,3.20527,2268.4,2268.1,2.20527]
[1625464534469,3.20527,2268.4,2267.7,15.0248]
[1625464534923,54.1657,2268.1,2267.7,15.0248]
[1625464535024,58.2773,2268.1,2267.7,15.0248]
[1625464535576,4.1116,2268.1,2267.7,15.0248]
[1625464535836,4.41054,2267.8,2267.7,17.23007]
[1625464535934,5.41054,2267.8,2267.7,17.23007]
[1625464536035,4.41054,2267.8,2267.7,17.23007]
[1625464536136,5.41054,2267.8,2267.7,17.23007]
[1625464536848,5.41054,2267.8,2267.5,2.20527]
[1625464537349,43.4886,2267.6,2267.5,2.20527]
[1625464537453,46.6396,2267.6,2267.5,2.20527]
[1625464538604,3.151,2267.6,2267.5,2.20527]
[1625464538706,1.0,2267.6,2267.5,2.20527]
[1625464540157,3.37650862,2268.8,2267.5,2.20527]
[1625464540260,3.37650862,2268.8,2267.5,3.20527]
[1625464540378,3.37650862,2268.8,2267.5,5.66707]
[1625464540567,4.759,2269.8,2267.5,5.66707]
[1625464540568,3.376327,2269.3,2267.5,5.66707]
[1625464540768,3.376327,2269.3,2267.5,10.66707]
[1625464541018,3.376327,2269.3,2267.6,16.022438]
[1625464541119,3.376327,2269.3,2267.7,1.0]
[1625464541318,3.376327,2269.3,2269.0,43.1609]
[1625464541421,3.42527796,2270.0,2269.0,46.1375]
[1625464541521,3.42527796,2270.0,2269.1,1.0]
[1625464541719,3.42527796,2270.0,2269.1,16.861816]
[1625464541819,5.63054796,2270.0,2269.9,4.41054]
[1625464541920,2.25527,2270.0,2269.9,7.83114]
[1625464542772,2.20527,2270.0,2269.9,7.83114]
[1625464543824,2.20527,2270.0,2269.9,3.4206]
[1625464543927,2.20527,2270.0,2269.4,2.20527]
[1625464544126,2.20527,2270.0,2269.4,3.20527]
[1625464544888,43.7413,2269.9,2269.4,3.20527]
[1625464545837,2.20527,2270.0,2269.4,3.20527]
[1625464545938,2.20527,2269.5,2269.4,3.20527]
[1625464546437,2.20527,2270.0,2269.4,3.20527]
[1625464546738,2.20527,2270.0,2269.4,2.20527]
[1625464547693,40.3385,2269.8,2267.7,3.28926182]
[1625464547803,5.0,2269.7,2268.2,1.0]
[1625464547891,2.20527,2268.8,2268.7,2.20527]
[1625464547993,5.70757,2268.8,2268.7,2.20527]
[1625464549644,5.70757,2268.8,2268.7,3.20527]
[1625464549847,2.20527,2268.8,2268.7,3.20527]
[1625464549947,4.41054,2268.8,2268.7,3.20527]
[1625464551708,4.41054,2268.8,2268.7,52.86927]
[1625464551809,4.41054,2268.8,2268.7,19.160674]
[1625464553014,4.41054,2268.8,2268.7,22.714274]
[1625464553817,3.37895942,2270.1,2268.7,22.714274]
[1625464553917,2.20527,2269.5,2269.3,2.20527]
[1625464554017,2.20527,2269.5,2269.3,5.28767]
[1625464554567,2.20527,2269.5,2269.3,3.0824]
[1625464555367,2.20527,2269.5,2268.8,1.0]
[1625464555587,2.20527,2269.5,2267.4,3.29157036]
[1625464555778,2.20527,2269.5,2267.4,6.13557036]
[1625464555988,2.20527,2268.5,2268.3,2.20527]
[1625464556086,2.20527,2268.5,2268.4,1.0]
[1625464558593,3.38024634,2269.7,2268.4,1.0]
[1625464559447,8.13921737,2269.8,2268.4,1.0]
[1625464559948,2.20527,2269.2,2269.0,2.20527]
[1625464560049,2.20527,2269.2,2269.0,4.47607]
[1625464560150,2.20527,2269.2,2269.0,2.2708]
[1625464561152,2.20527,2269.2,2269.0,3.2708]
[1625464561655,2.20527,2269.2,2269.0,2.2708]
[1625464561955,2.20527,2269.1,2269.0,2.2708]
[1625464562056,2.20527,2269.1,2268.5,2.20527]
[1625464562157,2.20527,2269.1,2268.5,3.20527]
[1625464563109,2.20527,2269.1,2268.5,2.20527]
[1625464563210,2.20527,2269.1,2268.5,3.20527]
[1625464563961,2.20527,2269.1,2269.0,2.20527]
[1625464564363,2.20527,2269.1,2269.0,7e-05]
[1625464564466,2.20527,2269.1,2268.5,3.20527]
[1625464564564,2.20527,2269.1,2268.5,2.20527]
[1625464564865,7.20527,2269.1,2268.2,1.0]
[1625464565066,7.20527,2269.1,2267.4,1.0]
[1625464565618,43.6023,2268.4,2267.4,1.0]
[1625464566017,2.20527,2267.7,2267.6,2.20527]
[1625464566118,1.20527,2267.7,2267.6,2.20527]
[1625464566519,2.20527,2267.7,2267.6,2.20527]
[1625464569272,1.20527,2267.7,2267.6,2.20527]
[1625464571731,1.20527,2267.7,2267.6,4.45867]
[1625464571931,1.20527,2267.7,2267.6,2.2534]
[1625464572583,55.1413,2268.6,2267.6,2.2534]
[1625464572683,1.0,2268.5,2267.6,2.2534]
[1625464574034,2.20527,2267.7,2267.6,2.2534]
[1625464575091,3.20527,2267.7,2267.6,2.2534]
[1625464575188,3.20527,2267.7,2267.4,2.25527]
[1625464576046,2.20527,2267.6,2267.4,2.25527]
[1625464576150,3.20527,2267.6,2267.4,2.25527]
[1625464576555,3.20527,2267.6,2267.4,2.20527]
[1625464581966,1.0,2267.6,2267.4,2.20527]
[1625464582066,2.60008764,2268.6,2267.4,4.97847]
[1625464582166,2.20527,2268.0,2267.7,2.20527]
[1625464582265,1.0,2267.9,2267.7,2.20527]
[1625464583367,1.0,2267.9,2267.4,4.97847]
[1625464584018,46.0236,2267.8,2267.4,4.97847]
[1625464584118,1.0,2267.7,2267.4,4.97847]
[1625464584219,4.41054,2267.5,2267.4,4.97847]
[1625464584322,5.41054,2267.5,2267.4,4.97847]
[1625464585220,4.41054,2267.5,2267.4,4.97847]
[1625464585320,5.41054,2267.5,2267.4,4.97847]
[1625464585423,8.42804,2267.5,2267.4,2.20527]
[1625464586284,8.42804,2267.5,2267.1,14.4308]
[1625464588236,2.20527,2267.2,2267.1,14.4308]
[1625464588335,3.20527,2267.2,2267.1,14.4308]
[1625464588835,2.20527,2267.2,2267.1,14.4308]
[1625464588938,3.20527,2267.2,2267.1,14.4308]
[1625464589238,2.20527,2267.2,2267.1,14.4308]
[1625464595060,3.20527,2267.2,2267.1,14.4308]
[1625464595862,2.20527,2267.2,2267.1,14.4308]
[1625464596162,3.20527,2267.2,2267.1,14.4308]
[1625464596812,2.20527,2267.2,2267.1,14.4308]
[1625464597113,3.20527,2267.2,2267.1,14.4308]
[1625464598115,2.20527,2267.2,2267.1,14.4308]
[1625464598215,3.20527,2267.2,2267.1,14.4308]
[1625464598313,2.20527,2267.2,2267.1,14.4308]
[1625464599815,2.20527,2267.2,2267.1,17.1767]
[1625464600627,2.20527,2267.2,2267.1,33.123636]
[1625464604339,2.20527,2267.5,2267.1,33.123636]
[1625464604839,3.20527,2267.5,2267.1,33.123636]
[1625464605040,3.20527,2267.5,2267.1,17.1767]
[1625464606142,2.20527,2267.5,2267.1,17.1767]
[1625464606342,2.20527,2267.2,2267.1,17.1767]
[1625464609048,2.20527,2267.2,2267.1,33.320841]
[1625464609347,2.20527,2267.2,2267.1,17.1767]
[1625464621629,2.20527,2267.2,2267.1,33.141705]
[1625464622532,2.20527,2267.5,2267.1,33.141705]
[1625464623034,1.0,2267.9,2267.1,33.141705]
[1625464623135,2.59630908,2269.0,2267.1,33.141705]
[1625464623235,3.59630908,2269.0,2267.1,33.141705]
[1625464623335,1.0,2269.0,2267.1,33.141705]
[1625464624490,2.20527,2268.8,2268.6,2.20527]
[1625464624588,1.0,2268.7,2268.6,2.20527]
[1625464626140,1.0,2268.7,2267.2,14.3203]
[1625464626544,2.20527,2268.3,2268.1,2.20527]
[1625464626644,3.20527,2268.3,2268.1,5.26437]
[1625464627744,2.20527,2268.3,2268.1,5.26437]
[1625464635080,1.0,2268.8,2268.1,5.26437]
[1625464635183,1.8184906,2269.3,2268.1,5.26437]
[1625464635380,2.59779012,2269.4,2268.1,5.26437]
[1625464635381,1.0,2269.4,2268.1,5.26437]
[1625464635480,1.0,2269.2,2268.1,5.26437]
[1625464635680,1.0,2269.2,2268.3,40.6467]
[1625464636582,1.0,2269.2,2269.1,4.41054]
[1625464638185,1.0,2269.2,2269.1,2.20527]
[1625464639086,2.20527,2269.3,2269.1,2.20527]
[1625464639186,3.20527,2269.3,2269.1,2.20527]
[1625464640638,2.20527,2269.2,2269.1,2.20527]
[1625464640740,3.20527,2269.2,2269.1,2.20527]
[1625464641140,2.20527,2269.2,2269.1,2.20527]
[1625464641441,3.20527,2269.2,2269.1,2.20527]
[1625464642456,6.45087,2269.2,2269.1,2.20527]
[1625464643099,6.45087,2269.2,2268.7,2.20527]
[1625464644755,2.20527,2268.8,2268.7,2.20527]
[1625464644856,3.20527,2268.8,2268.7,2.20527]
[1625464645457,3.20527,2268.8,2267.4,1.74784813]
[1625464645807,3.20527,2268.8,2267.1,14.4308]
[1625464646107,5.02456485,2268.8,2267.1,14.4308]
[1625464646207,43.2288,2268.2,2267.1,14.4308]
[1625464646356,1.0,2268.1,2267.1,14.4308]
[1625464646756,2.20527,2267.9,2267.8,2.20527]
[1625464646856,3.20527,2267.9,2267.8,2.20527]
[1625464647909,2.20527,2267.9,2267.8,2.20527]
[1625464648109,3.20527,2267.9,2267.8,2.20527]
[1625464648763,1.0,2267.9,2267.8,2.20527]
[1625464649262,3.3813,2268.2,2267.8,2.20527]
[1625464649464,1.0,2268.1,2267.8,2.20527]
[1625464650448,1.82002695,2268.5,2267.8,2.20527]
[1625464650624,1.82002695,2268.5,2267.8,5.53227]
[1625464650829,3.37992958,2268.9,2268.8,42.7548]
[1625464650929,1.81968485,2269.1,2268.8,44.8919]
[1625464651581,2.81925045,2269.6,2268.8,44.8919]
[1625464652635,1.0,2269.6,2268.8,44.8919]
[1625464652835,1.0,2269.6,2269.5,4.41054]
[1625464654490,1.0,2269.7,2269.5,4.41054]
[1625464656795,2.20527,2269.6,2269.5,4.41054]
[1625464656895,3.20527,2269.6,2269.5,4.41054]
[1625464660667,3.20527,2269.6,2269.5,2.20527]
[1625464661124,5.83287,2269.6,2269.5,2.20527]
[1625464661627,5.83287,2269.6,2268.2,14.8968]
[1625464662891,2.20527,2268.9,2268.8,2.20527]
[1625464662990,2.20527,2268.9,2268.8,4.79757]
[1625464664891,4.41054,2268.9,2268.8,4.79757]
[1625464665793,1.0,2269.5,2268.8,4.79757]
[1625464666946,1.0,2269.5,2269.4,4.41054]
[1625464668851,3.20527,2269.5,2269.4,4.41054]
[1625464673614,5.41017,2269.5,2268.2,14.8968]